fUST/lending_fUST_20240720
["ID","MTS","AMOUNT","RATE_DAILY","PERIOD"]
[332648860,1721405447590,-500.0,0.00019178,2]
[332648862,1721405447599,-500.0,0.00019178,2]
[332648864,1721405447613,-500.0,0.00019178,2]
[332648866,1721405447624,-502.11692774,0.00019178,2]
[332648868,1721405447634,-216.16660639,0.00019178,2]
[332648870,1721405447643,-500.0,0.00019178,2]
[332648871,1721405447653,-500.0,0.00019178,2]
[332648873,1721405447663,-500.0,0.00019178,2]
[332648875,1721405447673,-500.0,0.00019178,2]
[332648877,1721405447683,-500.0,0.00019178,2]
[332648879,1721405447694,-500.0,0.00019178,2]
[332648881,1721405447704,-351.42971393,0.00019178,2]
[332648882,1721405447715,-620.95576793,0.00019178,2]
[332648884,1721405447724,-500.0,0.00019178,2]
[332648886,1721405447733,-600.56,0.00019178,2]
[332648888,1721405447743,-500.0,0.00019178,2]
[332648890,1721405447753,-500.0,0.00019178,2]
[332648892,1721405447763,-500.0,0.00019178,2]
[332648893,1721405447774,-500.0,0.00019178,2]
[332648895,1721405447783,-500.0,0.00019178,2]
[332648897,1721405447794,-500.0,0.00019178,2]
[332648899,1721405447803,-500.0,0.00019178,2]
[332648901,1721405447813,-500.0,0.00019178,2]
[332648903,1721405447823,-500.0,0.00019178,2]
[332648904,1721405447832,-509.69583809,0.00019178,2]
[332648906,1721405447842,-500.0,0.00019178,2]
[332648908,1721405447851,-500.0,0.00019178,2]
[332648910,1721405447863,-444.53,0.00019178,2]
[332648912,1721405447872,-500.0,0.00019178,2]
[332648914,1721405447882,-500.0,0.00019178,2]
[332648916,1721405447891,-500.0,0.00019178,2]
[332648918,1721405447901,-500.0,0.00019178,2]
[332648919,1721405447910,-500.0,0.00019178,2]
[332648922,1721405447920,-500.0,0.00019178,2]
[332648923,1721405447930,-500.0,0.00019178,2]
[332648925,1721405447939,-552.00324419,0.00019178,2]
[332648927,1721405447948,-500.0,0.00019178,2]
[332648929,1721405447957,-506.22981944,0.00019178,2]
[332648931,1721405447967,-500.0,0.00019178,2]
[332648933,1721405447978,-500.0,0.00019178,2]
[332648935,1721405447987,-500.0,0.00019178,2]
[332648936,1721405447996,-500.0,0.00019178,2]
[332648938,1721405448006,-500.0,0.00019178,2]
[332648940,1721405448015,-523.0387468,0.00019178,2]
[332648942,1721405448025,-500.0,0.00019178,2]
[332648944,1721405448035,-500.0,0.00019178,2]
[332648946,1721405448045,-500.0,0.00019178,2]
[332648948,1721405448055,-500.0,0.00019178,2]
[332648949,1721405448064,-500.0,0.00019178,2]
[332648951,1721405448075,-500.0,0.00019178,2]
[332648953,1721405448084,-500.0,0.00019178,2]
[332648955,1721405448094,-500.0,0.00019178,2]
[332648957,1721405448104,-500.0,0.00019178,2]
[332648958,1721405448115,-500.0,0.00019178,2]
[332648960,1721405448125,-312.71802095,0.00019178,2]
[332648962,1721405448135,-500.0,0.00019178,2]
[332648964,1721405448145,-500.0,0.00019178,2]
[332648966,1721405448154,-500.0,0.00019178,2]
[332648968,1721405448165,-522.53197781,0.00019178,2]
[332648970,1721405448174,-500.0,0.00019178,2]
[332648972,1721405448183,-517.06325331,0.00019178,2]
[332648974,1721405448193,-502.92789072,0.00019178,2]
[332648976,1721405448202,-500.0,0.00019178,2]
[332648977,1721405448212,-500.0,0.00019178,2]
[332648979,1721405448224,-500.88676213,0.00019178,2]
[332648981,1721405448235,-500.0,0.00019178,2]
[332648983,1721405448247,-551.75958219,0.00019178,2]
[332648985,1721405448257,-500.6,0.00019178,2]
[332648987,1721405448267,-500.0,0.00019178,2]
[332648989,1721405448277,-500.0,0.00019178,2]
[332648991,1721405448288,-501.6009941,0.00019178,2]
[332648993,1721405448298,-328.72391075,0.00019178,2]
[332648994,1721405448308,-500.0,0.00019178,2]
[332648996,1721405448318,-500.0,0.00019178,2]
[332648998,1721405448331,-500.0,0.00019178,2]
[332649000,1721405448341,-500.0,0.00019178,2]
[332649002,1721405448351,-502.67366809,0.00019178,2]
[332649004,1721405448363,-500.0,0.00019178,2]
[332649006,1721405448373,-500.0,0.00019178,2]
[332649007,1721405448383,-500.0,0.00019178,2]
[332649009,1721405448393,-540.86,0.00019178,2]
[332649011,1721405448404,-500.0,0.00019178,2]
[332649013,1721405448414,-500.0,0.00019178,2]
[332649015,1721405448424,-500.0,0.00019178,2]
[332649017,1721405448434,-500.0,0.00019178,2]
[332649019,1721405448443,-495.19013268,0.00019178,2]
[332649021,1721405448453,-500.0,0.00019178,2]
[332649023,1721405448463,-500.0,0.00019178,2]
[332649024,1721405448473,-500.0,0.00019178,2]
[332649026,1721405448483,-500.0,0.00019178,2]
[332649028,1721405448493,-500.0,0.00019178,2]
[332649030,1721405448503,-500.0,0.00019178,2]
[332649032,1721405448513,-500.0,0.00019178,2]
[332649034,1721405448522,-500.0,0.00019178,2]
[332649036,1721405448533,-513.21474084,0.00019178,2]
[332649037,1721405448542,-500.0,0.00019178,2]
[332649039,1721405448552,-500.0,0.00019178,2]
[332649041,1721405448561,-500.0,0.00019178,2]
[332649043,1721405448571,-500.0,0.00019178,2]
[332649045,1721405448581,-500.0,0.00019178,2]
[332649046,1721405448590,-511.55262855,0.00019178,2]
[332649048,1721405448600,-500.0,0.00019178,2]
[332649050,1721405448613,-500.0,0.00019178,2]
[332649052,1721405448624,-500.0,0.00019178,2]
[332649054,1721405448633,-513.12136412,0.00019178,2]
[332649056,1721405448641,-500.0,0.00019178,2]
[332649058,1721405448651,-511.06525515,0.00019178,2]
[332649060,1721405448661,-500.0,0.00019178,2]
[332649062,1721405448671,-500.0,0.00019178,2]
[332649063,1721405448680,-500.0,0.00019178,2]
[332649065,1721405448690,-500.0,0.00019178,2]
[332649067,1721405448701,-500.0,0.00019178,2]
[332649069,1721405448713,-500.0,0.00019178,2]
[332649071,1721405448722,-500.0,0.00019178,2]
[332649073,1721405448732,-500.0,0.00019178,2]
[332649075,1721405448743,-500.0,0.00019178,2]
[332649077,1721405448753,-500.0,0.00019178,2]
[332649078,1721405448763,-500.0,0.00019178,2]
[332649080,1721405448773,-500.0,0.00019178,2]
[332649082,1721405448783,-500.0,0.00019178,2]
[332649084,1721405448793,-500.0,0.00019178,2]
[332649086,1721405448803,-500.0,0.00019178,2]
[332649088,1721405448814,-500.0,0.00019178,2]
[332649089,1721405448823,-500.0,0.00019178,2]
[332649091,1721405448834,-500.0,0.00019178,2]
[332649093,1721405448844,-500.0,0.00019178,2]
[332649095,1721405448854,-500.0,0.00019178,2]
[332649097,1721405448866,-500.0,0.00019178,2]
[332649099,1721405448875,-500.0,0.00019178,2]
[332649100,1721405448885,-486.68081897,0.00019178,2]
[332649102,1721405448896,-500.0,0.00019178,2]
[332649104,1721405448906,-506.01830379,0.00019178,2]
[332649106,1721405448916,-500.0,0.00019178,2]
[332649108,1721405448926,-500.0,0.00019178,2]
[332649109,1721405448936,-500.0,0.00019178,2]
[332649111,1721405448946,-484.1569262,0.00019178,2]
[332649112,1721405448957,-500.0,0.00019178,2]
[332649113,1721405448968,-500.0,0.00019178,2]
[332649114,1721405448978,-500.0,0.00019178,2]
[332649115,1721405448988,-500.0,0.00019178,2]
[332649116,1721405448998,-422.5502403,0.00019178,2]
[332649117,1721405449008,-500.0,0.00019178,2]
[332649118,1721405449019,-500.0,0.00019178,2]
[332649119,1721405449030,-500.0,0.00019178,2]
[332649120,1721405449040,-500.0,0.00019178,2]
[332649121,1721405449051,-500.0,0.00019178,2]
[332649122,1721405449062,-500.0,0.00019178,2]
[332649123,1721405449073,-500.0,0.00019178,2]
[332649124,1721405449082,-500.0,0.00019178,2]
[332649125,1721405449093,-500.0,0.00019178,2]
[332649126,1721405449103,-500.0,0.00019178,2]
[332649127,1721405449114,-500.0,0.00019178,2]
[332649128,1721405449124,-500.0,0.00019178,2]
[332649129,1721405449134,-500.0,0.00019178,2]
[332649130,1721405449144,-500.0,0.00019178,2]
[332649131,1721405449153,-500.0,0.00019178,2]
[332649132,1721405449163,-516.92020122,0.00019178,2]
[332649133,1721405449174,-500.0,0.00019178,2]
[332649134,1721405449185,-500.0,0.00019178,2]
[332649135,1721405449195,-500.0,0.00019178,2]
[332649136,1721405449205,-500.0,0.00019178,2]
[332649137,1721405449215,-500.0,0.00019178,2]
[332649138,1721405449226,-500.0,0.00019178,2]
[332649139,1721405449237,-569.58498182,0.00019178,2]
[332649140,1721405449247,-500.0,0.00019178,2]
[332649141,1721405449438,-500.0,0.00019178,2]
[332649142,1721405449448,-500.0,0.00019178,2]
[332649143,1721405449458,-500.0,0.00019178,2]
[332649144,1721405449468,-500.0,0.00019178,2]
[332649145,1721405449478,-500.0,0.00019178,2]
[332649146,1721405449489,-500.0,0.00019178,2]
[332649147,1721405449499,-500.0,0.00019178,2]
[332649148,1721405449510,-500.0,0.00019178,2]
[332649149,1721405449521,-500.0,0.00019178,2]
[332649150,1721405449531,-500.0,0.00019178,2]
[332649151,1721405449542,-500.0,0.00019178,2]
[332649152,1721405449551,-500.0,0.00019178,2]
[332649153,1721405449562,-500.0,0.00019178,2]
[332649154,1721405449572,-309.18495205,0.00019178,2]
[332649155,1721405449582,-500.0,0.00019178,2]
[332649156,1721405449591,-419.31947878,0.00019178,2]
[332649157,1721405449600,-519.61993245,0.00019178,2]
[332649158,1721405449613,-500.0,0.00019178,2]
[332649159,1721405449623,-502.98127505,0.00019178,2]
[332649160,1721405449634,-500.0,0.00019178,2]
[332649161,1721405449645,-500.0,0.00019178,2]
[332649162,1721405449655,-500.0,0.00019178,2]
[332649163,1721405449664,-539.73451214,0.00019178,2]
[332649164,1721405449674,-500.0,0.00019178,2]
[332649165,1721405449685,-500.0,0.00019178,2]
[332649166,1721405449695,-521.44797603,0.00019178,2]
[332649167,1721405449705,-500.0,0.00019178,2]
[332649168,1721405449716,-500.0,0.00019178,2]
[332649169,1721405449727,-500.0,0.00019178,2]
[332649170,1721405449737,-500.0,0.00019178,2]
[332649171,1721405449748,-500.0,0.00019178,2]
[332649172,1721405449758,-546.86852375,0.00019178,2]
[332649173,1721405449768,-500.0,0.00019178,2]
[332649174,1721405449779,-500.0,0.00019178,2]
[332649175,1721405449790,-500.0,0.00019178,2]
[332649176,1721405449802,-500.0,0.00019178,2]
[332649177,1721405449812,-500.0,0.00019178,2]
[332649178,1721405449823,-192.07471083,0.00019178,2]
[332649179,1721405449833,-500.0,0.00019178,2]
[332649180,1721405449843,-500.0,0.00019178,2]
[332649181,1721405449852,-500.0,0.00019178,2]
[332649182,1721405449865,-500.0,0.00019178,2]
[332649183,1721405449874,-513.40463145,0.00019178,2]
[332649184,1721405449884,-500.0,0.00019178,2]
[332649185,1721405449896,-500.0,0.00019178,2]
[332649186,1721405449905,-500.0,0.00019178,2]
[332649187,1721405449915,-537.99975884,0.00019178,2]
[332649188,1721405449925,-500.0,0.00019178,2]
[332649189,1721405449935,-500.0,0.00019178,2]
[332649191,1721405449944,-500.0,0.00019178,2]
[332649192,1721405449955,-500.0,0.00019178,2]
[332649193,1721405449965,-500.0,0.00019178,2]
[332649194,1721405449975,-500.0,0.00019178,2]
[332649196,1721405449985,-500.0,0.00019178,2]
[332649197,1721405449995,-456.9426002,0.00019178,2]
[332649254,1721405450564,-43.0573998,0.00019178,2]
[332649256,1721405450573,-172.13496854,0.00019178,2]
[332649258,1721405450583,-55.62451421,0.00019178,2]
[332651546,1721405475540,397.68,0.00010959,2]
[332654564,1721405571108,154.82195475,0.00013283,2]
[332654566,1721405581738,882.74102316,0.00013283,2]
[332654567,1721405593080,3000.0,0.000191,30]
[332654568,1721405593490,3000.0,0.0001911,30]
[332654569,1721405594023,3000.0,0.0001912,30]
[332654570,1721405594446,3000.0,0.0001913,30]
[332654571,1721405594932,3000.0,0.0001914,30]
[332654572,1721405595398,3000.0,0.0001915,30]
[332654573,1721405595875,3000.0,0.0001916,30]
[332654574,1721405596333,3000.0,0.0001917,30]
[332654575,1721405596681,3000.0,0.0001918,30]
[332654576,1721405597026,3000.0,0.0001919,30]
[332654577,1721405597499,3000.0,0.000192,30]
[332654578,1721405738000,150.77383924,0.00021225,30]
[332654579,1721406197017,150.0,0.000207,30]
[332654580,1721406281132,941.11785543,9.999e-05,2]
[332654581,1721406284339,533.13715373,9.999e-05,2]
[332654582,1721406290234,155.63751278,9.999e-05,2]
[332654583,1721406319052,524.1077099,9.999e-05,2]
[332654584,1721406326207,375.39217735,9.999e-05,2]
[332654586,1721406330903,248.72108803,9.999e-05,2]
[332654588,1721406338357,341.48992898,9.999e-05,2]
[332654589,1721406341128,154.82195475,9.999e-05,2]
[332654590,1721406342090,518.73589083,9.999e-05,2]
[332654591,1721406354731,287.30766407,0.0001,2]
[332654593,1721406358158,-166.666666,0.00014795,2]
[332654594,1721406358183,-386.347324,0.00014922,2]
[332654595,1721406358205,-250.0,0.00014987,2]
[332654596,1721406358227,-150.0,0.00015,2]
[332654597,1721406358250,-250.0,0.00015028,2]
[332654598,1721406358272,-250.0,0.00015069,2]
[332654599,1721406358294,-250.0,0.0001511,2]
[332654600,1721406358316,-250.0,0.00015152,2]
[332654601,1721406358339,-250.0,0.00015193,2]
[332654602,1721406358360,-250.0,0.00015234,2]
[332654603,1721406358383,-250.0,0.00015275,2]
[332654604,1721406358404,-250.0,0.00015316,2]
[332654605,1721406358725,-250.0,0.00015357,2]
[332654606,1721406358747,-250.0,0.00015398,2]
[332654607,1721406358768,-250.0,0.00015439,2]
[332654608,1721406358791,-250.0,0.0001548,2]
[332654609,1721406358813,-250.0,0.00015521,2]
[332654610,1721406358835,-250.0,0.00015563,2]
[332654611,1721406358857,-250.0,0.00015604,2]
[332654612,1721406358879,-250.0,0.00015645,2]
[332654613,1721406358901,-250.0,0.00015686,2]
[332654614,1721406358925,-300.0,0.00015707,2]
[332654615,1721406358947,-300.0,0.00015707,2]
[332654616,1721406358969,-5479.47062839,0.00015708,2]
[332654617,1721406358989,-1500.89854473,0.00015708,2]
[332654618,1721406359010,-154.74467129,0.00015708,2]
[332654619,1721406359031,-195.833007,0.00015708,2]
[332654620,1721406359053,-196.15176283,0.0001571,2]
[332654621,1721406359074,-154.82195475,0.0001571,2]
[332654622,1721406359095,-403.08254894,0.0001571,2]
[332654623,1721406359116,-250.0,0.00015727,2]
[332654624,1721406359136,-1043.81229928,0.00015746,2]
[332654625,1721406359156,-1043.81229928,0.00015746,2]
[332654626,1721406359182,-250.0,0.00015768,2]
[332654627,1721406359203,-1418.72650216,0.00015852,2]
[332654628,1721406359224,-252.73657135,0.0001591,2]
[332654629,1721406359246,-24900.0,0.00015919,2]
[332654630,1721406359267,-150.0,0.00016,2]
[332654631,1721406359288,-1441.0249446,0.0001601,2]
[332654632,1721406359309,-166.666666,0.00016438,2]
[332654633,1721406359330,-1418.7265021,0.00016587,2]
[332654634,1721406359350,-878.03783403,0.00016971,2]
[332654635,1721406359371,-150.0,0.00017,2]
[332654636,1721406359393,-420.0,0.00017178,2]
[332654637,1721406359415,-420.0,0.00017278,2]
[332654638,1721406359436,-1418.7265021,0.00017321,2]
[332654639,1721406359457,-166.666666,0.000174,2]
[332654640,1721406359479,-334.78807164,0.000179,2]
[332654641,1721406359501,-8114.6405276,0.0001799,2]
[332654642,1721406359522,-457.02914312,0.00017999,2]
[332654643,1721406359545,-70700.57922881,0.00018,2]
[332654644,1721406359617,404.10487158,9.999e-05,2]
[332654645,1721406359978,155.14626466,9.999e-05,2]
[332654646,1721406364415,248.01937256,0.0001212,2]
[332654648,1721406397410,154.83739293,0.0001212,2]
[332654650,1721406426109,-166.666666,0.00014795,2]
[332654651,1721406426133,-599.9748975,0.00015744,2]
[332654652,1721406426155,-1043.81229928,0.00015746,2]
[332654653,1721406426178,-180.0,0.00016195,2]
[332654654,1721406426200,-24169.8830271,0.00016196,2]
[332654655,1721406426225,-193.173662,0.0001704,2]
[332654656,1721406426246,-300.0,0.00017999,2]
[332654657,1721406426268,-29299.42077119,0.00018,2]
[332654658,1721406426288,-154.82195475,0.00018,2]
[332654659,1721406426309,-1042.65607414,0.00018,2]
[332654660,1721406426331,-150.0,0.00018,2]
[332654661,1721406426353,-227.0,0.00018034,2]
[332654662,1721406426374,-20746.06049871,0.00018125,2]
[332654663,1721406426396,-227.0,0.00018163,2]
[332654664,1721406426417,-334.78807163,0.00018195,2]
[332654665,1721406426439,-227.0,0.00018291,2]
[332654666,1721406426461,-152.023208,0.00018336,2]
[332654667,1721406426483,-182.333045,0.00018336,2]
[332654668,1721406426504,-166.666666,0.00018362,2]
[332654669,1721406426526,-227.0,0.0001842,2]
[332654670,1721406426550,-206.5463282,0.00018478,2]
[332654671,1721406426576,-334.78807163,0.00018489,2]
[332654672,1721406426602,-4553.65491304,0.00018511,2]
[332654673,1721406426628,-4057.3202638,0.00018547,2]
[332654674,1721406426652,-227.0,0.00018549,2]
[332654675,1721406426675,-152.023208,0.00018565,2]
[332654676,1721406426698,-182.333045,0.00018565,2]
[332654677,1721406426728,-620.0,0.00018592,2]
[332654678,1721406426748,-530.31617529,0.000186,4]
[332654679,1721406426773,-4553.65491304,0.00018652,2]
[332654680,1721406426795,-600.0,0.00018674,2]
[332654681,1721406426817,-227.0,0.00018678,2]
[332654682,1721406426839,-1638.39181986,0.00018679,2]
[332654683,1721406426862,-20057.19682084,0.00018696,2]
[332654684,1721406426893,-1224.0206536,0.00018696,2]
[332654685,1721406426915,-2123.06633741,0.00018701,2]
[332654686,1721406426938,-334.78807163,0.00018784,2]
[332654687,1721406426961,-277.07523786,0.00018786,2]
[332654688,1721406426983,-152.023208,0.00018794,2]
[332654689,1721406427006,-182.333045,0.00018794,2]
[332654690,1721406427028,-227.0,0.00018807,2]
[332654691,1721406427049,-747.86784003,0.00018868,2]
[332654692,1721406427071,-1288.05894896,0.000189,2]
[332654693,1721406427092,-4553.65491306,0.00018911,2]
[332654694,1721406427115,-227.0,0.00018936,2]
[332654695,1721406427138,-4057.3202638,0.00018969,2]
[332654696,1721406427159,-154.74467129,0.00018976,2]
[332654697,1721406427180,-154.74467129,0.00018976,2]
[332654698,1721406427201,-493.50123803,0.00018999,2]
[332654699,1721406427226,-2843.17391,0.00018999,2]
[332654700,1721406427246,-150.0,0.00019,2]
[332654701,1721406427268,-152.023208,0.00019023,2]
[332654702,1721406427289,-182.333045,0.00019023,2]
[332654703,1721406427309,-250.0,0.00019041,2]
[332654704,1721406427330,-526.68531291,0.00019046,2]
[332654705,1721406427350,-367.18794082,0.00019055,2]
[332654706,1721406427370,-1945.47989268,0.00019058,2]
[332654707,1721406427391,-227.0,0.00019065,2]
[332654708,1721406427413,-334.78807163,0.00019078,2]
[332654709,1721406427434,-4658.2735415,0.00019078,2]
[332654710,1721406427455,-1000.0,0.00019078,2]
[332654711,1721406427477,-30000.0,0.00019091,2]
[332654712,1721406427499,-4057.3202638,0.00019143,2]
[332654713,1721406427521,-739.495485,0.00019143,2]
[332654714,1721406427542,-739.495485,0.00019143,2]
[332654715,1721406427568,-151.0,0.00019143,2]
[332654716,1721406427590,-497.68015,0.00019143,2]
[332654717,1721406427614,-497.68015,0.00019143,2]
[332654718,1721406427637,-211.64890518,0.00019167,2]
[332654719,1721406427658,-500.0,0.00019167,2]
[332654720,1721406427680,-500.0,0.00019167,2]
[332654721,1721406427701,-243.6154613,0.00019167,2]
[332654722,1721406427724,-500.0,0.00019167,2]
[332654723,1721406427746,-500.0,0.00019167,2]
[332654724,1721406427768,-500.0,0.00019167,2]
[332654725,1721406427789,-456.61044511,0.00019167,2]
[332654726,1721406427811,-500.0,0.00019167,2]
[332654727,1721406427833,-177.26120716,0.00019167,2]
[332654728,1721406427855,-609.45330705,0.00019167,2]
[332654729,1721406427877,-500.0,0.00019167,2]
[332654730,1721406427899,-500.0,0.00019167,2]
[332654731,1721406427922,-500.0,0.00019167,2]
[332654732,1721406427944,-500.0,0.00019167,2]
[332654733,1721406427968,-570.25196738,0.00019167,2]
[332654734,1721406427990,-500.0,0.00019167,2]
[332654735,1721406428013,-500.0,0.00019167,2]
[332654736,1721406428035,-170.5308229,0.00019167,2]
[332654737,1721406428057,-400.0,0.00019167,2]
[332654738,1721406428081,-151.0,0.00019168,2]
[332654739,1721406428104,-151.0,0.00019168,2]
[332654740,1721406428126,-739.495485,0.00019168,2]
[332654741,1721406428149,-739.495485,0.00019168,2]
[332654742,1721406428171,-151.0,0.00019168,2]
[332654743,1721406428193,-497.68015,0.00019168,2]
[332654744,1721406428220,-497.68015,0.00019168,2]
[332654745,1721406428245,-60859.803957,0.00019168,2]
[332654746,1721406428532,-150.0,0.00019171,2]
[332654747,1721406428559,-504.0,0.00019171,2]
[332654748,1721406428581,-1408.0,0.00019171,2]
[332654749,1721406428608,-31222.28791595,0.00019178,5]
[332654750,1721406428630,-6017.15101152,0.00019178,5]
[332654751,1721406428654,-444.37548579,0.00019178,2]
[332654752,1721406428675,-525.20991421,0.00019178,2]
[332654753,1721406428696,-500.0,0.00019178,2]
[332654754,1721406428719,-500.0,0.00019178,2]
[332654755,1721406428741,-500.0,0.00019178,2]
[332654756,1721406428764,-500.0,0.00019178,2]
[332654757,1721406428786,-500.0,0.00019178,2]
[332654758,1721406428807,-430.62012293,0.00019178,2]
[332654759,1721406428829,-500.0,0.00019178,2]
[332654760,1721406428850,-500.0,0.00019178,2]
[332654761,1721406428871,-500.0,0.00019178,2]
[332654762,1721406428892,-500.0,0.00019178,2]
[332654763,1721406428914,-500.0,0.00019178,2]
[332654764,1721406428935,-500.0,0.00019178,2]
[332654765,1721406428957,-500.0,0.00019178,2]
[332654766,1721406428981,-500.0,0.00019178,2]
[332654767,1721406429003,-500.0,0.00019178,2]
[332654768,1721406429025,-500.0,0.00019178,2]
[332654769,1721406429048,-500.0,0.00019178,2]
[332654770,1721406429069,-515.61362713,0.00019178,2]
[332654771,1721406429092,-500.0,0.00019178,2]
[332654772,1721406429113,-500.0,0.00019178,2]
[332654773,1721406429134,-500.0,0.00019178,2]
[332654774,1721406429155,-500.0,0.00019178,2]
[332654775,1721406429176,-500.0,0.00019178,2]
[332654776,1721406429198,-500.0,0.00019178,2]
[332654777,1721406429223,-500.0,0.00019178,2]
[332654778,1721406429244,-500.0,0.00019178,2]
[332654779,1721406429264,-500.0,0.00019178,2]
[332654780,1721406429286,-500.0,0.00019178,2]
[332654781,1721406429310,-500.0,0.00019178,2]
[332654782,1721406429331,-500.0,0.00019178,2]
[332654783,1721406429352,-500.0,0.00019178,2]
[332654784,1721406429373,-500.0,0.00019178,2]
[332654785,1721406429395,-500.0,0.00019178,2]
[332654786,1721406429416,-500.0,0.00019178,2]
[332654787,1721406429437,-501.73402491,0.00019178,2]
[332654788,1721406429459,-500.0,0.00019178,2]
[332654789,1721406429482,-500.0,0.00019178,2]
[332654790,1721406429503,-500.0,0.00019178,2]
[332654791,1721406429524,-500.0,0.00019178,2]
[332654792,1721406429545,-500.0,0.00019178,2]
[332654793,1721406429571,-500.0,0.00019178,2]
[332654794,1721406429594,-500.0,0.00019178,2]
[332654795,1721406429619,-500.0,0.00019178,2]
[332654796,1721406429643,-227.68672824,0.00019178,2]
[332654797,1721406429664,-422.71958696,0.00019178,2]
[332654798,1721406429684,-500.0,0.00019178,2]
[332654799,1721406429706,-500.0,0.00019178,2]
[332654800,1721406429730,-500.0,0.00019178,2]
[332654801,1721406429755,-500.0,0.00019178,2]
[332654802,1721406429775,-542.29994762,0.00019178,2]
[332654803,1721406429795,-500.0,0.00019178,2]
[332654804,1721406429816,-500.0,0.00019178,2]
[332654805,1721406429836,-500.0,0.00019178,2]
[332654806,1721406429858,-509.10014452,0.00019178,2]
[332654807,1721406429880,-500.0,0.00019178,2]
[332654808,1721406429901,-501.55721621,0.00019178,2]
[332654809,1721406429922,-526.86203294,0.00019178,2]
[332654810,1721406429944,-500.0,0.00019178,2]
[332654811,1721406429969,-548.83057198,0.00019178,2]
[332654812,1721406429990,-508.75744489,0.00019178,2]
[332654813,1721406430011,-500.0,0.00019178,2]
[332654814,1721406430033,-500.0,0.00019178,2]
[332654815,1721406430054,-500.0,0.00019178,2]
[332654816,1721406430076,-500.0,0.00019178,2]
[332654817,1721406430097,-500.0,0.00019178,2]
[332654818,1721406430117,-62.42600482,0.00019178,2]
[332654819,1721406430173,-437.57399518,0.00019178,2]
[332654820,1721406430193,-500.0,0.00019178,2]
[332654821,1721406430217,-500.0,0.00019178,2]
[332654822,1721406430237,-500.0,0.00019178,2]
[332654823,1721406430257,-501.91834937,0.00019178,2]
[332654824,1721406430279,-500.0,0.00019178,2]
[332654825,1721406430301,-507.76574213,0.00019178,2]
[332654826,1721406430323,-502.6834477,0.00019178,2]
[332654827,1721406430343,-503.68855987,0.00019178,2]
[332654828,1721406430367,-500.0,0.00019178,2]
[332654829,1721406430387,-500.0,0.00019178,2]
[332654830,1721406430408,-511.07731971,0.00019178,2]
[332654831,1721406430428,-500.0,0.00019178,2]
[332654832,1721406430449,-500.0,0.00019178,2]
[332654833,1721406430473,-226.84244201,0.00019178,2]
[332654834,1721406430493,-528.16140898,0.00019178,2]
[332654835,1721406430514,-500.0,0.00019178,2]
[332654836,1721406430535,-500.0,0.00019178,2]
[332654837,1721406430559,-369.31833075,0.00019178,2]
[332654838,1721406430580,-500.0,0.00019178,2]
[332654839,1721406430602,-500.0,0.00019178,2]
[332654840,1721406430623,-500.0,0.00019178,2]
[332654841,1721406430646,-505.33863954,0.00019178,2]
[332654842,1721406430666,-500.0,0.00019178,2]
[332654843,1721406430689,-500.0,0.00019178,2]
[332654844,1721406430715,-500.0,0.00019178,2]
[332654845,1721406430737,-504.94559786,0.00019178,2]